bitfinex-derivatives/quotes_BTCF0:USTF0_20241203
["timestamp","ask_amount","ask_price","bid_price","bid_amount"]
[1733267535545,0.002,96030.0,96029.0,0.15616766]
[1733267535847,0.002,96030.0,96029.0,0.15716766]
[1733267536056,0.002,96030.0,96029.0,0.31452766]
[1733267536645,0.1861526,96038.0,96037.0,0.052029]
[1733267536845,0.57992717,96051.0,96037.0,0.412829]
[1733267536846,0.1861526,96039.0,96037.0,0.412829]
[1733267537038,0.00212228,96051.0,96044.0,0.052025]
[1733267537039,0.1861526,96047.0,96044.0,0.052025]
[1733267537241,0.1861526,96048.0,96046.0,0.052024]
[1733267537449,0.1861526,96047.0,96046.0,0.052064]
[1733267537641,0.00156227,96051.0,96046.0,0.052064]
[1733267537642,0.1861526,96048.0,96046.0,0.052064]
[1733267537839,0.1861526,96047.0,96046.0,0.15617969]
[1733267538245,0.1861526,96048.0,96046.0,0.15617969]
[1733267538552,0.1861526,96048.0,96046.0,0.15717969]
[1733267538749,0.003,96047.0,96046.0,0.15717969]
[1733267540348,0.003,96048.0,96046.0,0.15717969]
[1733267541449,0.003,96047.0,96046.0,0.15717969]
[1733267542156,0.003,96047.0,96046.0,0.15617969]
[1733267542350,0.003,96047.0,96046.0,0.15717969]
[1733267543057,0.00156227,96051.0,96046.0,0.15717969]
[1733267543355,0.003,96048.0,96047.0,0.052024]
[1733267543947,0.00156227,96051.0,96050.0,0.052022]
[1733267544551,0.00156227,96051.0,96050.0,0.15613715]
[1733267545155,0.00156227,96051.0,96050.0,0.15713715]
[1733267549448,0.05358327,96051.0,96050.0,0.001]
[1733267549655,0.00156227,96051.0,96050.0,0.053022]
[1733267549849,0.15239878,96051.0,96050.0,0.001]
[1733267550551,0.15239878,96051.0,96050.0,0.053022]
[1733267550754,0.10037778,96051.0,96050.0,0.15713389]
[1733267550957,0.10082242,96051.0,96050.0,0.15713389]
[1733267551151,0.00156227,96051.0,96050.0,0.15713389]
[1733267551555,0.18828389,96051.0,96050.0,0.15713389]
[1733267551759,0.00156227,96051.0,96050.0,0.15713389]
[1733267553852,0.00156227,96051.0,96050.0,0.15613389]
[1733267554453,0.1003809,96051.0,96050.0,0.15613389]
[1733267554851,0.052024,96047.0,96046.0,4e-05]
[1733267555057,0.052024,96047.0,96046.0,0.052064]
[1733267555755,0.15000461,96047.0,96046.0,0.052064]
[1733267556156,0.15000461,96047.0,96046.0,4e-05]
[1733267556852,0.26371577,96047.0,96046.0,4e-05]
[1733267557557,0.39325699,96047.0,96046.0,4e-05]
[1733267559959,0.39371175,96047.0,96046.0,4e-05]
[1733267560354,0.052028,96039.0,96038.0,0.0104]
[1733267560563,0.052032,96032.0,96031.0,0.0104]
[1733267560860,0.052032,96032.0,96026.0,0.0052]
[1733267560861,0.21807111,96032.0,96026.0,0.1041249]
[1733267561054,0.052034,96027.0,96026.0,0.1041249]
[1733267561249,0.052035,96026.0,96025.0,7.725e-05]
[1733267561451,0.1501326,96026.0,96025.0,7.725e-05]
[1733267561657,0.1501326,96026.0,96025.0,0.10420215]
[1733267562459,0.052035,96026.0,96025.0,7.725e-05]
[1733267562758,0.09813608,96026.0,96025.0,0.05211225]
[1733267562959,0.09813608,96026.0,96025.0,0.15625125]
[1733267563159,0.09813608,96026.0,96025.0,0.16025125]
[1733267563361,0.09813608,96026.0,96025.0,0.16425125]
[1733267563863,0.22067111,96031.0,96030.0,0.052033]
[1733267564455,0.22067111,96031.0,96030.0,0.316492]
[1733267564855,0.22067111,96031.0,96030.0,0.316532]
[1733267566360,0.22067111,96031.0,96030.0,0.366132]
[1733267566763,0.0026,96031.0,96030.0,0.366132]
[1733267569478,0.10127936,96031.0,96030.0,0.366132]
[1733267569861,0.0026,96031.0,96030.0,0.366132]
[1733267570065,0.21798247,96038.0,96037.0,0.052029]
[1733267570267,0.21798247,96038.0,96037.0,0.412829]
[1733267570572,0.21798247,96038.0,96037.0,0.412869]
[1733267570772,0.21798247,96038.0,96037.0,0.51700258]
[1733267571766,0.21798247,96038.0,96037.0,0.51900258]
[1733267572771,0.21798247,96038.0,96037.0,0.54914464]
[1733267574168,0.21798247,96038.0,96037.0,0.51900258]
[1733267574368,0.21798247,96038.0,96037.0,0.67928258]
[1733267574579,0.0985477,96038.0,96037.0,0.62725358]
[1733267574873,0.0985477,96038.0,96037.0,0.67928258]
[1733267575375,0.0985477,96038.0,96037.0,0.31848258]
[1733267576475,0.0985477,96038.0,96037.0,0.15620258]
[1733267576771,0.1505757,96038.0,96037.0,0.31648258]
[1733267577471,0.1505757,96038.0,96037.0,0.26445358]
[1733267578268,0.26518715,96038.0,96037.0,0.26445358]
[1733267578769,0.43095415,96038.0,96037.0,4e-05]
[1733267578971,0.43095415,96038.0,96027.0,0.3608]
[1733267578972,0.052034,96028.0,96027.0,0.3608]
[1733267579173,0.16622575,96028.0,96027.0,0.3608]
[1733267579371,0.15038641,96028.0,96027.0,0.3608]
[1733267579770,0.26457816,96028.0,96027.0,0.3608]
[1733267580275,0.39446311,96028.0,96027.0,0.3608]
[1733267580474,0.33240149,96028.0,96027.0,0.3608]
[1733267580667,0.2961107,96028.0,96027.0,0.3608]
[1733267580872,0.39446311,96028.0,96027.0,0.3608]
[1733267581173,0.67478133,96028.0,96027.0,0.3608]
[1733267581676,0.54489638,96028.0,96027.0,0.003]
[1733267581872,0.26457816,96028.0,96027.0,0.003]
[1733267582668,0.26457816,96028.0,96027.0,0.055034]
[1733267583177,0.15038641,96028.0,96027.0,0.055034]
[1733267583569,0.052034,96028.0,96027.0,0.055034]
[1733267583771,0.27001464,96028.0,96027.0,0.055034]
[1733267583980,0.15038641,96028.0,96027.0,0.055034]
[1733267584180,0.27001175,96028.0,96027.0,0.055034]
[1733267584574,0.11547121,96028.0,96027.0,0.055034]
[1733267584772,0.33235122,96031.0,96027.0,0.46793683]
[1733267585074,0.052034,96028.0,96027.0,0.10713683]
[1733267585277,0.26585739,96028.0,96027.0,0.003]
[1733267585673,0.39743903,96028.0,96027.0,0.003]
[1733267587775,0.39743903,96028.0,96025.0,0.00267725]
[1733267587776,0.052035,96026.0,96025.0,0.00267725]
[1733267587977,0.39744003,96026.0,96025.0,0.00267725]
[1733267588485,0.73734003,96026.0,96025.0,0.00267725]
[1733267589479,0.73734003,96026.0,96025.0,0.00567725]
[1733267589784,0.73734003,96026.0,96025.0,0.00767725]
[1733267590085,1.01737523,96026.0,96025.0,0.00767725]
[1733267590274,0.60575839,96026.0,96025.0,0.05971225]
[1733267590478,0.49028741,96026.0,96025.0,0.05971225]
[1733267590672,0.70806383,96026.0,96025.0,0.05971225]
[1733267590882,0.49028741,96026.0,96025.0,0.05971225]
[1733267591181,0.82339815,96026.0,96025.0,0.05971225]
[1733267591384,0.26572263,96026.0,96025.0,0.05971225]
[1733267591583,0.15137242,96026.0,96025.0,0.05971225]
[1733267591776,0.26981854,96026.0,96025.0,0.05971225]
[1733267591977,0.3691566,96026.0,96025.0,0.05971225]
[1733267592477,0.15137242,96026.0,96025.0,0.05971225]
[1733267592680,0.052035,96026.0,96025.0,0.05971225]
[1733267592875,0.11538466,96026.0,96025.0,0.00767725]
[1733267593070,0.21472812,96026.0,96025.0,0.16385125]
[1733267593271,0.21472812,96026.0,96025.0,0.11181625]
[1733267593272,0.31713144,96026.0,96025.0,0.11181625]
[1733267593484,0.21779402,96026.0,96025.0,0.16385125]
[1733267593678,0.09933742,96026.0,96025.0,0.16385125]
[1733267593873,0.21779402,96028.0,96027.0,0.052034]
[1733267594074,0.09955318,96028.0,96027.0,0.052034]
[1733267594488,0.09955318,96028.0,96027.0,0.156173]
[1733267594879,0.21779402,96028.0,96027.0,0.156173]
[1733267595079,0.21779402,96028.0,96027.0,0.158173]
[1733267595282,0.3173472,96028.0,96027.0,0.158173]
[1733267595477,0.09955318,96028.0,96027.0,0.158173]
[1733267595981,0.3173472,96028.0,96027.0,0.159173]
[1733267596183,0.3693812,96028.0,96027.0,0.107139]
[1733267596888,0.36941407,96028.0,96027.0,0.107139]
[1733267597486,0.26658795,96028.0,96027.0,0.107139]
[1733267597786,0.36942108,96028.0,96027.0,0.107139]
[1733267598579,0.15158718,96028.0,96027.0,0.003]
[1733267598780,0.36942108,96028.0,96027.0,0.003]
[1733267598976,0.15158718,96028.0,96027.0,0.003]
[1733267599187,0.26610493,96028.0,96027.0,0.003]
[1733267600188,0.15158718,96028.0,96027.0,0.003]
[1733267600379,0.26610493,96028.0,96027.0,0.003]
[1733267600782,0.39653444,96028.0,96027.0,0.003]
[1733267600986,0.39575309,96028.0,96027.0,0.003]
[1733267601382,0.52528181,96028.0,96027.0,0.003]
[1733267601579,0.33227752,96028.0,96027.0,0.003]
[1733267601780,0.39575309,96028.0,96027.0,0.003]
[1733267601982,0.26528783,96028.0,96027.0,0.003]
[1733267602183,0.39580049,96028.0,96027.0,0.003]
[1733267602882,0.26728783,96028.0,96027.0,0.002]
[1733267603884,0.052034,96026.0,96025.0,0.05471125]
[1733267604093,0.27010504,96026.0,96025.0,0.05471125]
[1733267604293,0.27010504,96026.0,96025.0,0.15884808]
[1733267604294,0.1507148,96026.0,96025.0,0.15884808]
[1733267604489,0.27018596,96026.0,96025.0,0.15884808]
[1733267604793,0.0986808,96026.0,96025.0,0.15884808]
[1733267604987,0.31683276,96026.0,96025.0,0.15884808]
[1733267605292,0.0986808,96026.0,96025.0,0.15984808]
[1733267605789,0.001,96026.0,96025.0,0.15984808]
[1733267606192,0.3649041,96026.0,96025.0,0.15984808]
[1733267606391,0.34884462,96026.0,96025.0,0.15984808]
[1733267606593,0.001,96026.0,96025.0,0.15984808]
[1733267606782,0.34907368,96026.0,96025.0,0.67960808]
[1733267606982,0.0996808,96026.0,96025.0,0.67960808]
[1733267608086,0.0996808,96026.0,96025.0,0.67860808]
[1733267608292,0.0996808,96026.0,96025.0,0.68060808]
[1733267608686,0.0996808,96026.0,96025.0,0.68160808]
[1733267608687,0.0986808,96026.0,96025.0,0.68160808]
[1733267608891,0.0986808,96026.0,96025.0,0.67960808]
[1733267609091,0.0986808,96026.0,96025.0,0.68260808]
[1733267609690,0.21819846,96036.0,96035.0,0.052029]
[1733267609891,0.21341503,96036.0,96035.0,0.412829]
[1733267610096,0.21808002,96036.0,96035.0,0.412869]
[1733267610287,0.26562001,96038.0,96035.0,0.517008]
[1733267610488,0.21808222,96036.0,96035.0,0.517008]
[1733267610693,0.31691951,96036.0,96035.0,0.516968]
[1733267610887,0.09883729,96036.0,96035.0,0.516968]
[1733267611082,0.21804221,96036.0,96035.0,0.464939]
[1733267611295,0.16687609,96036.0,96035.0,0.516968]
[1733267611501,0.26571338,96036.0,96035.0,0.516968]
[1733267611688,0.26571338,96036.0,96035.0,0.464939]
[1733267611887,0.26871338,96036.0,96035.0,0.464939]
[1733267612088,0.26871338,96036.0,96035.0,0.104139]
[1733267612393,0.26871338,96036.0,96034.0,0.05203]
[1733267612394,0.21668438,96036.0,96034.0,0.05203]
[1733267612590,0.05203,96035.0,96034.0,0.05203]
[1733267612890,0.26571438,96035.0,96034.0,0.05203]
[1733267613091,0.51490978,96035.0,96034.0,0.05203]
[1733267613290,0.51490978,96035.0,96034.0,0.15615924]
[1733267613895,0.26571438,96035.0,96034.0,0.15615924]
[1733267614293,0.27004905,96035.0,96034.0,0.15615924]
[1733267614507,0.31685634,96035.0,96034.0,0.15615924]
[1733267614900,0.11486854,96035.0,96034.0,0.15615924]
[1733267615192,0.052029,96037.0,96036.0,0.052029]
[1733267615391,0.26582461,96037.0,96036.0,0.052029]
[1733267615785,0.26582461,96037.0,96036.0,0.15615824]
[1733267618302,0.26982461,96037.0,96036.0,0.15615824]
[1733267619506,0.26994013,96037.0,96036.0,0.15615824]
[1733267620001,0.37307429,96037.0,96036.0,0.15615824]
[1733267620292,0.37310678,96037.0,96036.0,0.15615824]
[1733267620699,0.26993819,96037.0,96036.0,0.15615824]
[1733267620900,0.27145732,96037.0,96036.0,0.15615824]
[1733267622295,0.052032,96031.0,96030.0,0.0026]
[1733267622495,0.052034,96026.0,96025.0,0.00267725]
[1733267622704,0.052034,96026.0,96025.0,7.725e-05]
[1733267622893,0.05346494,96026.0,96025.0,7.725e-05]
[1733267623092,0.62828398,96026.0,96025.0,7.725e-05]
[1733267623288,0.62828398,96026.0,96020.0,0.0026]
[1733267623289,0.052037,96021.0,96020.0,0.0026]
[1733267623489,0.052037,96021.0,96015.0,0.0026]
[1733267623490,0.05204,96016.0,96015.0,0.0026]
[1733267623697,0.7007,96025.0,96016.0,0.052038]
[1733267623698,0.05204,96017.0,96016.0,0.052038]
[1733267623899,0.05347094,96017.0,96016.0,0.052038]
[1733267624197,0.2676152,96017.0,96016.0,0.05218685]
[1733267624395,0.6284152,96017.0,96016.0,0.00014885]
[1733267625388,0.87769927,96017.0,96016.0,0.05218885]
[1733267625795,0.6284152,96017.0,96016.0,0.15633761]
[1733267625995,0.2155752,96017.0,96016.0,0.16733761]
[1733267626897,0.46477568,96017.0,96016.0,0.16733761]
[1733267627196,0.46471993,96017.0,96016.0,0.16733761]
[1733267627501,0.21550103,96017.0,96016.0,0.16733761]
[1733267628098,0.10048945,96017.0,96016.0,0.52813761]
[1733267629092,0.00143094,96017.0,96016.0,0.52813761]
[1733267629493,0.00143094,96017.0,96016.0,0.52213761]
[1733267630000,0.00123369,96017.0,96016.0,0.52213761]
[1733267630211,0.00123369,96017.0,96016.0,0.52413761]
[1733267631897,0.00123369,96017.0,96016.0,0.52113761]
[1733267632104,0.00123369,96017.0,96016.0,0.52513761]
[1733267633904,0.18811263,96017.0,96016.0,0.52513761]
[1733267634104,0.00123369,96017.0,96016.0,0.52513761]
[1733267640105,0.15701045,96017.0,96016.0,0.52513761]
[1733267640302,0.00123369,96017.0,96016.0,0.52513761]
[1733267640509,0.00123369,96017.0,96016.0,0.32625761]
[1733267640811,0.09971007,96017.0,96016.0,0.11129761]
[1733267641011,0.31775246,96017.0,96016.0,0.16233761]
[1733267641201,0.48399383,96017.0,96016.0,0.11029761]
[1733267641406,0.51517034,96017.0,96016.0,0.00614885]
[1733267641608,0.26595144,96017.0,96016.0,0.00614885]
[1733267642002,0.05327269,96017.0,96016.0,0.00614885]
[1733267642306,0.05327269,96017.0,96016.0,0.00714885]
[1733267642705,0.29751902,96017.0,96016.0,0.00714885]
[1733267642904,0.05327269,96017.0,96016.0,0.00714885]
[1733267643200,0.26595144,96017.0,96016.0,0.00614885]
[1733267643405,0.26595144,96017.0,96016.0,0.05818885]
[1733267643809,0.26595144,96017.0,96016.0,0.00614885]
[1733267644219,0.26738272,96017.0,96016.0,0.00614885]
[1733267644409,0.51651497,96017.0,96016.0,0.05818885]
[1733267644809,0.51651479,96017.0,96016.0,0.05818885]
[1733267645109,0.26738272,96017.0,96016.0,0.05818885]
[1733267646912,0.26738272,96017.0,96016.0,0.00614885]
[1733267647505,0.26738272,96017.0,96016.0,0.05818885]
[1733267647916,0.26738272,96017.0,96016.0,0.00614885]
[1733267648209,0.26738272,96017.0,96016.0,0.05818885]
[1733267649412,0.26738272,96017.0,96016.0,0.00614885]
[1733267649613,0.40228444,96017.0,96016.0,0.00614885]
[1733267649917,0.26738272,96017.0,96016.0,0.00614885]
[1733267650419,0.05470397,96017.0,96016.0,0.00614885]
[1733267650619,0.052043,96011.0,96010.0,0.0104]
[1733267650822,0.052047,96003.0,96002.0,0.0104]
[1733267651018,0.05205,95997.0,95996.0,0.05205]
[1733267651319,0.05471497,95997.0,95996.0,0.05205]
[1733267651519,0.37189036,95997.0,95996.0,0.05205]
[1733267651716,0.37189036,95997.0,95996.0,0.05216755]
[1733267651917,0.15394808,95997.0,95996.0,0.05216755]
[1733267652115,0.37189036,95997.0,95996.0,0.05916755]
[1733267652318,0.26944405,95997.0,95996.0,0.00711755]
[1733267652522,0.51851943,95997.0,95996.0,0.01211755]
[1733267653117,0.26944405,95997.0,95996.0,0.01211755]
[1733267655125,0.15394808,95997.0,95996.0,0.01211755]
[1733267655321,0.27236101,95997.0,95996.0,0.01211755]
[1733267655722,0.15394808,95997.0,95996.0,0.01211755]
[1733267655922,0.15394808,95997.0,95996.0,0.06416855]
[1733267655923,0.37159412,95997.0,95996.0,0.06416855]
[1733267656125,0.15394808,95997.0,95996.0,0.06416855]
[1733267657029,0.05471497,95997.0,95996.0,0.06416855]
[1733267657530,0.15456072,95997.0,95996.0,0.06416855]
[1733267657728,0.05471497,95997.0,95996.0,0.06416855]
[1733267657921,0.00266497,95997.0,95996.0,0.16833901]
[1733267658629,0.052049,96000.0,95999.0,0.052049]
[1733267658927,0.15210954,96000.0,95999.0,0.052089]
[1733267659328,0.15210954,96000.0,95999.0,0.1562562]
[1733267659629,0.10006054,96000.0,95999.0,0.1622562]
[1733267659831,0.10006054,96000.0,95999.0,0.1102072]
[1733267659832,0.052049,96000.0,95999.0,0.1102072]
[1733267661029,0.052049,96000.0,95999.0,0.01004]
[1733267661421,0.16811731,96000.0,95999.0,0.01004]
[1733267661730,0.052049,96000.0,95999.0,0.01004]
[1733267662231,0.26822969,96000.0,95999.0,0.01004]
[1733267663229,0.51730507,96000.0,95999.0,0.01004]
[1733267663638,0.26822969,96000.0,95999.0,0.01004]
[1733267663928,0.51730507,96000.0,95999.0,0.01004]
[1733267664134,0.26822969,96000.0,95999.0,0.01004]
[1733267664722,0.052049,96000.0,95999.0,0.01004]
[1733267664928,0.40102109,96000.0,95999.0,0.01004]
[1733267665633,0.26856185,96000.0,95999.0,0.01004]
[1733267668223,0.40088132,96000.0,95999.0,0.01004]
[1733267669631,0.40100954,96000.0,95999.0,0.01004]
[1733267671229,0.05205,95997.0,95996.0,0.00011755]
[1733267671432,0.4985272,95997.0,95996.0,0.00011755]
[1733267671728,0.46694494,95997.0,95996.0,0.00011755]
[1733267671924,0.56713054,95997.0,95996.0,0.00011755]
[1733267672531,0.40101054,95997.0,95996.0,0.00511755]
[1733267672731,0.40201054,95997.0,95996.0,0.01211755]
[1733267673046,0.46589274,95997.0,95996.0,0.01211755]
[1733267673235,0.26955578,95997.0,95996.0,0.01211755]
[1733267673439,0.1532356,95997.0,95996.0,0.52913901]
[1733267673938,0.26969585,95997.0,95996.0,0.52913901]
[1733267674130,0.1532356,95997.0,95996.0,0.52913901]
[1733267674329,0.37129809,95997.0,95996.0,0.11628801]
[1733267674551,0.26947529,95997.0,95996.0,0.11628801]
[1733267674930,0.1532356,95997.0,95996.0,0.11628801]
[1733267675137,0.05305,95997.0,95996.0,0.11628801]
[1733267675640,0.05305,95997.0,95996.0,0.16833901]
[1733267675938,0.26947575,95997.0,95996.0,0.16833901]
[1733267676136,0.2697317,95997.0,95996.0,0.16833901]
[1733267677436,0.26990579,95997.0,95996.0,0.11628801]
[1733267678141,0.26990579,95997.0,95996.0,0.01211755]
[1733267678851,0.05305,95997.0,95996.0,0.01211755]
[1733267679546,0.33376888,95997.0,95996.0,0.01211755]
[1733267679741,0.18579834,95997.0,95996.0,0.01211755]
[1733267680043,0.30237582,95997.0,95996.0,0.01211755]
[1733267680241,0.40278303,95997.0,95996.0,0.01211755]
[1733267680439,0.27003469,95997.0,95996.0,0.01211755]
[1733267680744,0.51959296,95997.0,95996.0,0.01211755]
[1733267680945,0.26969938,95997.0,95996.0,0.01211755]
[1733267682344,0.3716621,95997.0,95996.0,0.01211755]
[1733267682538,0.15330205,95997.0,95996.0,0.01211755]
[1733267683047,0.05305,95997.0,95996.0,0.01211755]
[1733267683245,0.16926905,95997.0,95996.0,0.01211755]
[1733267683440,0.05305,95997.0,95996.0,0.01211755]
[1733267683639,0.26933533,95997.0,95996.0,0.01211755]
[1733267684342,0.40136239,95997.0,95996.0,0.01211755]
[1733267686841,0.49702382,95997.0,95996.0,0.01211755]
[1733267687045,0.40086391,95997.0,95996.0,0.01211755]
[1733267687344,0.36500374,95997.0,95996.0,0.01211755]
[1733267687545,0.40086391,95997.0,95996.0,0.01211755]
[1733267688250,0.36500739,95997.0,95996.0,0.01211755]
[1733267688445,0.40055458,95997.0,95996.0,0.01211755]
[1733267689751,0.71251197,95997.0,95996.0,0.01211755]
[1733267690147,0.71256683,95997.0,95996.0,0.01211755]
[1733267691043,0.40055458,95997.0,95996.0,0.01211755]
[1733267691247,0.71262724,95997.0,95996.0,0.01211755]
[1733267692350,0.40055458,95997.0,95996.0,0.01211755]
[1733267693251,0.61127642,95997.0,95996.0,0.01211755]
[1733267693553,0.61127803,95997.0,95996.0,0.01211755]
[1733267693748,0.74318015,95997.0,95996.0,0.01211755]
[1733267693946,0.43110225,95997.0,95996.0,0.01211755]
[1733267695153,0.39568324,95997.0,95996.0,0.01211755]
[1733267695350,0.43110225,95997.0,95996.0,0.01211755]
[1733267695849,0.47780225,95997.0,95996.0,0.01211755]
[1733267697245,0.78990451,95997.0,95996.0,0.01211755]
[1733267697446,0.47780225,95997.0,95996.0,0.01211755]
[1733267698748,0.78990451,95997.0,95996.0,0.01211755]
[1733267699056,0.47780225,95997.0,95996.0,0.01211755]
[1733267699648,0.78990119,95997.0,95996.0,0.01211755]
[1733267700255,0.47780225,95997.0,95996.0,0.01211755]
[1733267700560,0.65548225,95997.0,95996.0,0.01211755]
[1733267700859,0.57823458,95997.0,95996.0,0.01211755]
[1733267701151,0.55280868,95997.0,95996.0,0.01211755]
[1733267701344,0.27191134,95997.0,95996.0,0.01211755]
[1733267701549,0.30275306,95997.0,95996.0,0.52913901]
[1733267701753,0.52161163,95997.0,95996.0,0.52913901]
[1733267701958,0.27191134,95997.0,95996.0,0.52913901]
[1733267702360,0.21986134,95997.0,95996.0,0.55853167]
[1733267702550,0.28190217,95997.0,95996.0,0.55853167]
[1733267702754,0.27191134,95997.0,95996.0,0.55853167]
[1733267702950,0.17063573,95997.0,95996.0,0.50648067]
[1733267703150,0.33395217,95997.0,95996.0,0.11628801]
[1733267703453,0.40583335,95997.0,95996.0,0.01211755]
[1733267703654,0.71793229,95997.0,95996.0,0.01211755]
[1733267704151,0.40583335,95997.0,95996.0,0.01211755]
[1733267704957,0.33397375,95997.0,95996.0,0.01211755]
[1733267705147,0.55283509,95997.0,95996.0,0.06416855]
[1733267705348,0.27191134,95997.0,95996.0,0.16833901]
[1733267706351,0.14936134,95997.0,95996.0,0.16833901]
[1733267706562,9.087e-05,96000.0,95999.0,0.052049]
[1733267706759,0.28352375,96003.0,95999.0,0.6608]
[1733267706760,0.0026,96003.0,95999.0,0.6608]
[1733267706950,0.21843994,96000.0,95999.0,0.6608]
[1733267707267,0.052043,96011.0,96005.0,0.052046]
[1733267707268,0.21843994,96006.0,96005.0,0.052046]
[1733267707470,0.27048294,96010.0,96009.0,0.052044]
[1733267708064,0.052043,96010.0,96009.0,0.052044]
[1733267708363,0.052043,96010.0,96009.0,0.10416558]
[1733267708552,0.27023856,96010.0,96009.0,0.13479859]
[1733267708757,0.052043,96010.0,96009.0,0.08267701]
[1733267708960,0.052043,96010.0,96009.0,0.18683336]
[1733267710065,0.27018807,96010.0,96009.0,0.18683336]
[1733267710464,0.052043,96010.0,96009.0,0.18683336]
[1733267710773,0.052043,96010.0,96009.0,0.10515635]
[1733267711068,0.094743,96010.0,96009.0,0.15720035]
[1733267711362,0.052043,96010.0,96009.0,0.15720035]
[1733267711565,0.27014462,96010.0,96009.0,0.15720035]
[1733267711757,0.052043,96010.0,96009.0,0.15720035]
[1733267712164,0.052043,96010.0,96009.0,0.18722088]
[1733267712563,0.21810162,96012.0,96011.0,0.052043]
[1733267712868,0.052041,96014.0,96013.0,0.052041]
[1733267713054,0.052041,96014.0,96013.0,0.412841]
[1733267713657,0.00156291,96017.0,96013.0,0.46495202]
[1733267713855,0.00156291,96017.0,96016.0,0.05204]
[1733267714459,0.05360191,96017.0,96016.0,0.15618876]
[1733267714862,0.00156291,96017.0,96016.0,0.15618876]
[1733267715667,0.00456291,96017.0,96016.0,0.15618876]
[1733267715867,0.00456291,96017.0,96016.0,0.69474876]
[1733267716958,0.19125144,96017.0,96016.0,0.69474876]
[1733267717358,0.00456291,96017.0,96016.0,0.69474876]
[1733267718757,0.003,96017.0,96016.0,0.69474876]
[1733267719671,0.18968853,96017.0,96016.0,0.69474876]
[1733267720165,0.003,96017.0,96016.0,0.51698876]
[1733267720370,0.003,96017.0,96016.0,0.69474876]
[1733267720668,0.003,96017.0,96016.0,0.51698876]
[1733267720862,0.18957482,96017.0,96016.0,0.69474876]
[1733267721064,0.003,96017.0,96016.0,0.69474876]
[1733267721669,0.18955655,96017.0,96016.0,0.69474876]
[1733267722460,0.003,96017.0,96016.0,0.69474876]
[1733267723076,0.18954233,96017.0,96016.0,0.69474876]
[1733267723372,0.003,96017.0,96016.0,0.69474876]
[1733267726270,0.15844422,96017.0,96016.0,0.69474876]
[1733267726473,0.15846955,96017.0,96016.0,0.69474876]
[1733267726972,0.003,96017.0,96016.0,0.69474876]
[1733267727565,0.23718233,96028.0,96021.0,0.052037]
[1733267727566,0.15546955,96023.0,96021.0,0.052037]
[1733267727770,0.15546955,96023.0,96022.0,0.412837]
[1733267727965,0.1569008,96023.0,96022.0,0.412837]
[1733267728168,0.1569008,96023.0,96022.0,0.51698576]
[1733267728470,0.00143125,96023.0,96022.0,0.51698576]
[1733267728969,0.1569008,96023.0,96022.0,0.51698576]
[1733267729271,0.00743125,96023.0,96022.0,0.51698576]
[1733267729467,0.1629008,96023.0,96022.0,0.51698576]
[1733267729666,0.1629008,96023.0,96022.0,0.51798576]
[1733267729860,0.00743125,96023.0,96022.0,0.51798576]
[1733267730064,0.00943125,96023.0,96022.0,0.51798576]
[1733267730271,0.1649008,96023.0,96022.0,0.51798576]
[1733267730575,0.00943125,96023.0,96022.0,0.51798576]
[1733267730777,0.00943125,96023.0,96022.0,0.54814575]
[1733267731372,0.1649008,96023.0,96022.0,0.54814575]
[1733267731563,0.00943125,96023.0,96022.0,0.54814575]
[1733267733269,0.16496838,96023.0,96022.0,0.54814575]
[1733267733478,0.16498336,96023.0,96022.0,0.54814575]
[1733267733660,0.16498358,96023.0,96022.0,0.54814575]
[1733267733862,0.00943125,96023.0,96022.0,0.54814575]
[1733267734066,0.23718233,96028.0,96022.0,0.49610875]
[1733267734267,0.05064,96028.0,96027.0,0.412834]
[1733267734474,0.02737842,96028.0,96027.0,0.590554]
[1733267734967,0.1223967,96028.0,96027.0,0.51697625]
[1733267735171,0.1223967,96028.0,96027.0,0.61819625]
[1733267735863,0.1223967,96028.0,96027.0,0.61919625]
[1733267736274,0.1223967,96028.0,96027.0,0.44767625]
[1733267736473,0.1744297,96028.0,96027.0,0.44767625]
[1733267737272,0.1223967,96028.0,96027.0,0.44767625]
[1733267737471,0.1223967,96028.0,96027.0,0.44867625]
[1733267737871,0.07941142,96028.0,96027.0,0.39664225]
[1733267738171,0.07941142,96028.0,96027.0,0.002]
[1733267738471,0.07941142,96028.0,96027.0,0.001]
[1733267738472,0.28448547,96028.0,96027.0,0.001]
[1733267739364,0.41055327,96028.0,96027.0,0.001]
[1733267739572,0.41055327,96028.0,96027.0,0.052034]
[1733267739871,0.40955327,96028.0,96027.0,0.053034]
[1733267740072,0.35852027,96028.0,96027.0,0.15817083]
[1733267740466,0.23345247,96028.0,96027.0,0.15817083]
[1733267740671,0.23345247,96028.0,96027.0,0.15717083]
[1733267741068,0.23645247,96028.0,96027.0,0.15717083]
[1733267741263,0.48566969,96028.0,96027.0,0.15717083]
[1733267741467,0.48466969,96028.0,96027.0,0.15617083]
[1733267741773,0.23718187,96028.0,96027.0,0.15617083]
[1733267742170,0.23861312,96028.0,96027.0,0.15617083]
[1733267742566,0.12870537,96028.0,96027.0,0.15617083]
[1733267742970,0.03380967,96028.0,96027.0,0.15617083]
[1733267743374,0.03080967,96028.0,96027.0,0.15617083]
[1733267743579,0.12627993,96028.0,96027.0,0.15617083]
[1733267743786,0.12627993,96028.0,96027.0,0.18604076]
[1733267744266,0.12527993,96028.0,96027.0,0.18704076]
[1733267744684,0.12327993,96028.0,96027.0,0.18704076]
[1733267745377,0.02880967,96028.0,96027.0,0.18704076]
[1733267746381,0.02880967,96028.0,96027.0,0.15717083]
[1733267746983,0.12379897,96028.0,96027.0,0.15717083]
[1733267747278,0.28646271,96028.0,96027.0,0.15717083]
[1733267747679,0.28627941,96028.0,96027.0,0.15617083]
[1733267748578,0.23424641,96028.0,96027.0,0.15617083]
[1733267748984,0.1258732,96028.0,96027.0,0.15617083]
[1733267749478,0.03080967,96028.0,96027.0,0.15617083]
[1733267749685,0.1258732,96028.0,96027.0,0.15617083]
[1733267750769,0.1258732,96028.0,96027.0,0.15717083]
[1733267751582,0.1238732,96028.0,96027.0,0.15717083]
[1733267755575,0.13871994,96028.0,96027.0,0.15717083]
[1733267755778,0.23378347,96028.0,96027.0,0.15717083]
[1733267756175,0.34212187,96028.0,96027.0,0.15717083]
[1733267756373,0.34213023,96028.0,96027.0,0.15717083]
[1733267756775,0.1238732,96028.0,96027.0,0.15717083]
[1733267756983,0.24707326,96028.0,96027.0,0.15717083]
[1733267757177,0.23372698,96028.0,96027.0,0.15717083]
[1733267758080,0.23515823,96028.0,96027.0,0.15717083]
[1733267758483,0.24852163,96028.0,96027.0,0.15717083]
[1733267758683,0.03024092,96028.0,96027.0,0.15717083]
[1733267760490,0.03024092,96028.0,96027.0,0.15617083]
[1733267760678,0.03024092,96028.0,96027.0,0.15717083]
[1733267761187,0.12532524,96028.0,96027.0,0.20197083]